[Event "Late-Titled-Tuesday-Blitz-January-30-2024"]
[Site "Chess.com"]
[Date "2024.01.30"]
[Round "8"]
[White "rquery98"]
[Black "GasconJR"]
[Result "1-0"]
[WhiteElo "2737"]
[BlackElo "2599"]
[TimeControl "180+1"]
[EndTime "15:26:18 PST"]
[Termination "rquery98 won on time"]

1. Nf3 {[%clk 0:03:00.9]} 1... Nf6 {[%clk 0:02:58.5]} 2. g3 {[%clk 0:02:59.7]}
2... b6 {[%clk 0:02:58.9]} 3. Bg2 {[%clk 0:03:00.6]} 3... Bb7 {[%clk 0:02:59.5]}
4. O-O {[%clk 0:03:00.4]} 4... e6 {[%clk 0:02:59.9]} 5. d3 {[%clk 0:03:01]} 5...
d5 {[%clk 0:02:59.2]} 6. Nbd2 {[%clk 0:03:01.4]} 6... Nbd7 {[%clk 0:02:59.3]} 7.
e4 {[%clk 0:03:01.5]} 7... dxe4 {[%clk 0:02:43.4]} 8. dxe4 {[%clk 0:02:47.4]}
8... Nc5 {[%clk 0:02:41.7]} 9. e5 {[%clk 0:02:44.6]} 9... Nd5 {[%clk 0:02:39.3]}
10. a3 {[%clk 0:02:39.6]} 10... a5 {[%clk 0:02:36.4]} 11. c4 {[%clk 0:02:39.7]}
11... Ne7 {[%clk 0:02:34.6]} 12. b3 {[%clk 0:02:33.2]} 12... Nf5 {[%clk
0:02:21.8]} 13. Bb2 {[%clk 0:02:30.6]} 13... Be7 {[%clk 0:02:19.5]} 14. g4
{[%clk 0:02:16.8]} 14... Nh6 {[%clk 0:01:59.2]} 15. Nd4 {[%clk 0:02:16.9]} 15...
Bxg2 {[%clk 0:01:54.7]} 16. Kxg2 {[%clk 0:02:17.8]} 16... Nd3 {[%clk 0:01:46]}
17. Bc3 {[%clk 0:02:13.7]} 17... Nf4+ {[%clk 0:01:41.4]} 18. Kg3 {[%clk
0:02:00.1]} 18... c5 {[%clk 0:01:18.1]} 19. Nb5 {[%clk 0:01:52.8]} 19... Bh4+
{[%clk 0:00:51.7]} 20. Kxf4 {[%clk 0:01:33.9]} 20... Qd3 {[%clk 0:00:28.4]} 21.
Nd6+ {[%clk 0:01:34.1]} 21... Ke7 {[%clk 0:00:24]} 22. g5 {[%clk 0:01:33.5]}
22... Bxg5+ {[%clk 0:00:08.2]} 23. Kxg5 {[%clk 0:01:34.4]} 23... Qxc3 {[%clk
0:00:03.4]} 24. Nf3 {[%clk 0:01:32.2]} 24... f6+ {[%clk 0:00:03.4]} 25. Kh4
{[%clk 0:01:27.1]} 25... Rad8 {[%clk 0:00:01.3]} 26. Qe2 {[%clk 0:01:09.4]}
26... fxe5 {[%clk 0:00:01.4]} 27. Ne4 {[%clk 0:01:04.3]} 1-0

[Event "Late-Titled-Tuesday-Blitz-January-30-2024"]
[Site "Chess.com"]
[Date "2024.01.30"]
[Round "8"]
[White "rikchessmx"]
[Black "shirovin"]
[Result "1-0"]
[WhiteElo "2322"]
[BlackElo "2061"]
[TimeControl "180+1"]
[EndTime "15:26:18 PST"]
[Termination "rikchessmx won on time"]

1. e4 {[%clk 0:03:00.9]} 1... c5 {[%clk 0:02:58.8]} 2. Nf3 {[%clk 0:03:00.5]}
2... e6 {[%clk 0:02:58.6]} 3. d4 {[%clk 0:03:01.4]} 3... cxd4 {[%clk 0:02:58.2]}
4. Nxd4 {[%clk 0:03:02.3]} 4... Nc6 {[%clk 0:02:58.1]} 5. Nxc6 {[%clk 0:03:02]}
5... bxc6 {[%clk 0:02:57.4]} 6. Bd3 {[%clk 0:03:02.9]} 6... Nf6 {[%clk
0:02:55.9]} 7. O-O {[%clk 0:03:03.4]} 7... Qc7 {[%clk 0:02:55.7]} 8. Nc3 {[%clk
0:03:03.9]} 8... d5 {[%clk 0:02:40.3]} 9. Qe2 {[%clk 0:02:56.3]} 9... Be7 {[%clk
0:02:35.3]} 10. b3 {[%clk 0:02:54.5]} 10... O-O {[%clk 0:02:30]} 11. Bb2 {[%clk
0:02:54.1]} 11... Bb7 {[%clk 0:02:12.5]} 12. e5 {[%clk 0:02:53.3]} 12... Nd7
{[%clk 0:02:10.4]} 13. f4 {[%clk 0:02:53]} 13... g6 {[%clk 0:02:08]} 14. Nd1
{[%clk 0:02:49]} 14... c5 {[%clk 0:02:04]} 15. c4 {[%clk 0:02:48.3]} 15... Nb6
{[%clk 0:01:53.5]} 16. Ne3 {[%clk 0:02:47.1]} 16... Rad8 {[%clk 0:01:48]} 17.
Rac1 {[%clk 0:02:44.2]} 17... Ba8 {[%clk 0:01:34.5]} 18. Rf2 {[%clk 0:02:40.3]}
18... Qb7 {[%clk 0:01:30]} 19. f5 {[%clk 0:02:25]} 19... d4 {[%clk 0:01:04.1]}
20. Ng4 {[%clk 0:02:19.5]} 20... exf5 {[%clk 0:00:42]} 21. Nh6+ {[%clk
0:02:18.1]} 21... Kh8 {[%clk 0:00:35.4]} 22. Rcf1 {[%clk 0:02:04.2]} 22... Bg5
{[%clk 0:00:33.2]} 23. Nxf5 {[%clk 0:01:59.3]} 23... gxf5 {[%clk 0:00:31.4]} 24.
Qh5 {[%clk 0:01:56.2]} 24... Be3 {[%clk 0:00:19]} 25. Kh1 {[%clk 0:01:56.4]}
25... Bxf2 {[%clk 0:00:18.1]} 26. Rxf2 {[%clk 0:01:56.5]} 26... f6 {[%clk
0:00:12.8]} 27. e6 {[%clk 0:01:53.5]} 27... Rde8 {[%clk 0:00:12.1]} 28. Qxf5
{[%clk 0:01:53]} 28... Qg7 {[%clk 0:00:10.1]} 29. Bc1 {[%clk 0:01:51.7]} 29...
Rg8 {[%clk 0:00:09.9]} 30. Be4 {[%clk 0:01:48.9]} 30... Bxe4 {[%clk 0:00:08.7]}
31. Qxe4 {[%clk 0:01:49.2]} 31... Qe7 {[%clk 0:00:08]} 32. Re2 {[%clk
0:01:48.8]} 32... Rg7 {[%clk 0:00:06.5]} 33. b4 {[%clk 0:01:39.2]} 33... cxb4
{[%clk 0:00:05]} 34. Qxd4 {[%clk 0:01:39.5]} 34... Nc8 {[%clk 0:00:03.9]} 35.
Bb2 {[%clk 0:01:37.9]} 35... Rd8 {[%clk 0:00:03.1]} 36. Qg1 {[%clk 0:01:28.7]}
36... Rd3 {[%clk 0:00:01.2]} 37. Qf1 {[%clk 0:01:27.3]} 1-0

[Event "Late-Titled-Tuesday-Blitz-January-30-2024"]
[Site "Chess.com"]
[Date "2024.01.30"]
[Round "8"]
[White "JCVanDamme10"]
[Black "SmirnovTimofey2000"]
[Result "1-0"]
[WhiteElo "2309"]
[BlackElo "1950"]
[TimeControl "180+1"]
[EndTime "15:26:18 PST"]
[Termination "JCVanDamme10 won on time"]

1. e4 {[%clk 0:03:00.9]} 1... e5 {[%clk 0:02:59.4]} 2. Nf3 {[%clk 0:03:00.7]}
2... Nf6 {[%clk 0:02:59.5]} 3. Nc3 {[%clk 0:02:59.2]} 3... Bb4 {[%clk
0:02:58.9]} 4. Bc4 {[%clk 0:02:57.1]} 4... O-O {[%clk 0:02:58.2]} 5. d3 {[%clk
0:02:54.8]} 5... d5 {[%clk 0:02:57.1]} 6. exd5 {[%clk 0:02:54.7]} 6... Nxd5
{[%clk 0:02:56.3]} 7. Bd2 {[%clk 0:02:55.2]} 7... Nxc3 {[%clk 0:02:56]} 8. bxc3
{[%clk 0:02:55.5]} 8... Bd6 {[%clk 0:02:55.7]} 9. O-O {[%clk 0:02:55.9]} 9...
Bg4 {[%clk 0:02:52.4]} 10. h3 {[%clk 0:02:56.2]} 10... Bh5 {[%clk 0:02:50.9]}
11. Rb1 {[%clk 0:02:52.9]} 11... b6 {[%clk 0:02:49.5]} 12. Re1 {[%clk
0:02:43.1]} 12... Re8 {[%clk 0:02:46.3]} 13. g4 {[%clk 0:02:41.2]} 13... Bg6
{[%clk 0:02:45.9]} 14. Bg5 {[%clk 0:02:40.7]} 14... Qd7 {[%clk 0:02:30.9]} 15.
Nh4 {[%clk 0:02:38]} 15... Nc6 {[%clk 0:02:17.6]} 16. Nxg6 {[%clk 0:02:36.8]}
16... hxg6 {[%clk 0:02:15.7]} 17. Qf3 {[%clk 0:02:36.6]} 17... Na5 {[%clk
0:02:05.9]} 18. Bd5 {[%clk 0:02:31.5]} 18... Rab8 {[%clk 0:01:52.4]} 19. h4
{[%clk 0:02:24.1]} 19... c6 {[%clk 0:01:48.1]} 20. Be4 {[%clk 0:02:23.1]} 20...
Be7 {[%clk 0:01:23.4]} 21. Bd2 {[%clk 0:02:17]} 21... Bxh4 {[%clk 0:01:14.4]}
22. Kg2 {[%clk 0:02:17.2]} 22... Qd8 {[%clk 0:00:56.7]} 23. Rh1 {[%clk
0:02:11.2]} 23... Bg5 {[%clk 0:00:55]} 24. Qh3 {[%clk 0:02:03.4]} 24... f6
{[%clk 0:00:33.1]} 25. Qh7+ {[%clk 0:01:52.5]} 25... Kf8 {[%clk 0:00:28.9]} 26.
Bxg5 {[%clk 0:01:44.6]} 26... fxg5 {[%clk 0:00:28.6]} 27. Bxg6 {[%clk
0:01:45.1]} 27... Qf6 {[%clk 0:00:20.8]} 28. Rh3 {[%clk 0:01:38.1]} 28... Ke7
{[%clk 0:00:15.6]} 29. Rf3 {[%clk 0:01:37.8]} 29... Qe6 {[%clk 0:00:02.1]} 30.
Qxg7+ {[%clk 0:01:29.7]} 30... Kd6 {[%clk 0:00:02.3]} 31. Rf6 {[%clk 0:01:29.5]}
1-0

[Event "Late-Titled-Tuesday-Blitz-January-30-2024"]
[Site "Chess.com"]
[Date "2024.01.30"]
[Round "8"]
[White "Fh2411"]
[Black "C_K_G"]
[Result "1-0"]
[WhiteElo "2589"]
[BlackElo "2199"]
[TimeControl "180+1"]
[EndTime "15:26:22 PST"]
[Termination "Fh2411 won on time"]

1. d4 {[%clk 0:03:00.9]} 1... d5 {[%clk 0:02:56.5]} 2. Nf3 {[%clk 0:03:00.1]}
2... e6 {[%clk 0:02:55.8]} 3. Bf4 {[%clk 0:03:00.4]} 3... Nf6 {[%clk 0:02:55.2]}
4. e3 {[%clk 0:03:00.6]} 4... Bd6 {[%clk 0:02:55.1]} 5. Bg3 {[%clk 0:03:00.5]}
5... c5 {[%clk 0:02:54.2]} 6. Bb5+ {[%clk 0:02:45.8]} 6... Nc6 {[%clk
0:02:53.5]} 7. c3 {[%clk 0:02:45.7]} 7... c4 {[%clk 0:02:36.6]} 8. Ba4 {[%clk
0:02:38.9]} 8... O-O {[%clk 0:02:34.5]} 9. Nbd2 {[%clk 0:02:37.3]} 9... Qc7
{[%clk 0:02:33.5]} 10. Qe2 {[%clk 0:02:28]} 10... e5 {[%clk 0:02:29.2]} 11. Bxc6
{[%clk 0:02:26.2]} 11... e4 {[%clk 0:02:15]} 12. Bxd5 {[%clk 0:02:21]} 12...
exf3 {[%clk 0:01:59.3]} 13. Bxf3 {[%clk 0:02:20]} 13... Be6 {[%clk 0:01:48.3]}
14. Bxd6 {[%clk 0:02:14.8]} 14... Qxd6 {[%clk 0:01:48.5]} 15. Nxc4 {[%clk
0:02:15.5]} 15... Qc7 {[%clk 0:01:19.7]} 16. Ne5 {[%clk 0:02:13.9]} 16... Rad8
{[%clk 0:01:14.4]} 17. O-O {[%clk 0:02:13.6]} 17... a6 {[%clk 0:01:13.1]} 18. a4
{[%clk 0:02:02.8]} 18... Nd7 {[%clk 0:01:10.8]} 19. Nxd7 {[%clk 0:01:58.3]}
19... Rxd7 {[%clk 0:01:08.8]} 20. Rfd1 {[%clk 0:01:48.5]} 20... g6 {[%clk
0:01:05]} 21. d5 {[%clk 0:01:44.4]} 21... Bf5 {[%clk 0:01:00.5]} 22. e4 {[%clk
0:01:44.6]} 22... Re8 {[%clk 0:00:58.1]} 23. Qc2 {[%clk 0:01:41.9]} 23... Rde7
{[%clk 0:00:12.7]} 24. exf5 {[%clk 0:01:39.9]} 24... Qf4 {[%clk 0:00:12.1]} 25.
h3 {[%clk 0:01:27.6]} 25... Re5 {[%clk 0:00:09.8]} 26. d6 {[%clk 0:01:24.2]}
26... Rxf5 {[%clk 0:00:07.6]} 27. d7 {[%clk 0:01:19.3]} 27... Rd8 {[%clk
0:00:05.8]} 28. Qe4 {[%clk 0:01:19.6]} 28... Qc7 {[%clk 0:00:03.8]} 29. Qxb7
{[%clk 0:01:17.9]} 1-0

[Event "Late-Titled-Tuesday-Blitz-January-30-2024"]
[Site "Chess.com"]
[Date "2024.01.30"]
[Round "8"]
[White "PNEPaul"]
[Black "Smile2005"]
[Result "1-0"]
[WhiteElo "1878"]
[BlackElo "2409"]
[TimeControl "180+1"]
[EndTime "15:26:24 PST"]
[Termination "PNEPaul won by checkmate"]

1. e4 {[%clk 0:01:50.5]} 1... c5 {[%clk 0:02:57.7]} 2. Nf3 {[%clk 0:01:50.4]}
2... e6 {[%clk 0:02:57.3]} 3. d4 {[%clk 0:01:50.4]} 3... cxd4 {[%clk 0:02:58.2]}
4. c3 {[%clk 0:01:50.8]} 4... a6 {[%clk 0:02:59.1]} 5. cxd4 {[%clk 0:01:50.2]}
5... d5 {[%clk 0:03:00]} 6. e5 {[%clk 0:01:49.9]} 6... Nc6 {[%clk 0:03:00.3]} 7.
Nc3 {[%clk 0:01:49.8]} 7... Nge7 {[%clk 0:02:59.9]} 8. Bd3 {[%clk 0:01:49.8]}
8... g6 {[%clk 0:02:59.7]} 9. O-O {[%clk 0:01:49]} 9... Nf5 {[%clk 0:03:00]} 10.
Bxf5 {[%clk 0:01:45]} 10... exf5 {[%clk 0:03:00.9]} 11. Bg5 {[%clk 0:01:45]}
11... Be7 {[%clk 0:03:00.6]} 12. Bxe7 {[%clk 0:01:43]} 12... Nxe7 {[%clk
0:03:01.5]} 13. Qd2 {[%clk 0:01:29.2]} 13... O-O {[%clk 0:03:00.6]} 14. Qh6
{[%clk 0:01:28.8]} 14... f6 {[%clk 0:02:52.8]} 15. exf6 {[%clk 0:01:19.1]} 15...
Rxf6 {[%clk 0:02:37.7]} 16. Ng5 {[%clk 0:01:19]} 16... Rf7 {[%clk 0:02:00.8]}
17. Nxf7 {[%clk 0:01:15.4]} 17... Kxf7 {[%clk 0:02:01.7]} 18. Qxh7+ {[%clk
0:01:15.3]} 18... Ke8 {[%clk 0:02:01.9]} 19. Rae1 {[%clk 0:01:07.7]} 19... b5
{[%clk 0:02:00.2]} 20. Nxd5 {[%clk 0:01:05.4]} 20... Kd7 {[%clk 0:01:50.7]} 21.
Rxe7+ {[%clk 0:00:52.7]} 21... Kd6 {[%clk 0:01:50.5]} 22. Re5 {[%clk 0:00:36.3]}
22... Be6 {[%clk 0:01:47.8]} 23. Qxg6 {[%clk 0:00:34.4]} 23... Qd7 {[%clk
0:01:47.2]} 24. Rfe1 {[%clk 0:00:32.5]} 24... Re8 {[%clk 0:01:46.6]} 25. Nf6
{[%clk 0:00:27.2]} 25... Qe7 {[%clk 0:00:55.7]} 26. Nxe8+ {[%clk 0:00:24.4]}
26... Kd7 {[%clk 0:00:55.8]} 27. Rxe6 {[%clk 0:00:22.7]} 27... Qb4 {[%clk
0:00:55.7]} 28. Qf7+ {[%clk 0:00:19.9]} 28... Kd8 {[%clk 0:00:53.4]} 29. Qc7#
{[%clk 0:00:17.6]} 1-0

[Event "Late-Titled-Tuesday-Blitz-January-30-2024"]
[Site "Chess.com"]
[Date "2024.01.30"]
[Round "8"]
[White "dropstoneDP"]
[Black "temus_galaktionov"]
[Result "1-0"]
[WhiteElo "3052"]
[BlackElo "2885"]
[TimeControl "180+1"]
[EndTime "15:26:36 PST"]
[Termination "dropstoneDP won by resignation"]

1. e4 {[%clk 0:02:39.9]} 1... c6 {[%clk 0:03:00.9]} 2. d4 {[%clk 0:02:38.8]}
2... g6 {[%clk 0:02:53.3]} 3. Nf3 {[%clk 0:02:38.7]} 3... Bg7 {[%clk 0:02:53]}
4. h3 {[%clk 0:02:39.3]} 4... d6 {[%clk 0:02:53.1]} 5. Bd3 {[%clk 0:02:38.9]}
5... Nd7 {[%clk 0:02:53]} 6. O-O {[%clk 0:02:38.8]} 6... e5 {[%clk 0:02:53.6]}
7. dxe5 {[%clk 0:02:39.4]} 7... dxe5 {[%clk 0:02:53.1]} 8. Nbd2 {[%clk
0:02:39.8]} 8... Ngf6 {[%clk 0:02:52.8]} 9. Nc4 {[%clk 0:02:38.7]} 9... O-O
{[%clk 0:02:50.9]} 10. Ncxe5 {[%clk 0:02:37.1]} 10... Nxe5 {[%clk 0:02:50.4]}
11. Nxe5 {[%clk 0:02:38]} 11... Re8 {[%clk 0:02:42.2]} 12. Nf3 {[%clk
0:02:30.5]} 12... Qb6 {[%clk 0:02:23.1]} 13. Rb1 {[%clk 0:02:29.1]} 13... Nxe4
{[%clk 0:02:20.1]} 14. Be3 {[%clk 0:02:27.3]} 14... Qa5 {[%clk 0:02:15.6]} 15.
Re1 {[%clk 0:02:20.3]} 15... Bf5 {[%clk 0:02:08.8]} 16. g4 {[%clk 0:01:53.1]}
16... Be6 {[%clk 0:01:13.2]} 17. Bxe4 {[%clk 0:01:52.3]} 17... Bxa2 {[%clk
0:01:12.9]} 18. Bd2 {[%clk 0:01:46.5]} 18... Qb6 {[%clk 0:01:03.1]} 19. Ra1
{[%clk 0:01:45.6]} 19... Qxb2 {[%clk 0:01:02.8]} 20. c3 {[%clk 0:01:45]} 20...
Bb3 {[%clk 0:00:31.6]} 21. Qb1 {[%clk 0:01:33.3]} 21... Qxb1 {[%clk 0:00:26.2]}
22. Raxb1 {[%clk 0:01:25.2]} 22... Rxe4 {[%clk 0:00:25.2]} 23. Rxb3 {[%clk
0:01:22.9]} 23... Rxe1+ {[%clk 0:00:24]} 24. Bxe1 {[%clk 0:01:23.4]} 24... b6
{[%clk 0:00:22.3]} 25. c4 {[%clk 0:01:22.6]} 25... Rd8 {[%clk 0:00:19.7]} 26.
Kf1 {[%clk 0:01:21.6]} 26... Kf8 {[%clk 0:00:17.2]} 27. Ra3 {[%clk 0:01:15.5]}
27... Rd7 {[%clk 0:00:16.7]} 28. c5 {[%clk 0:01:12.4]} 28... b5 {[%clk
0:00:16.6]} 29. Ra6 {[%clk 0:01:11.6]} 29... Rb7 {[%clk 0:00:11.1]} 30. Bb4
{[%clk 0:01:10.7]} 30... Ke7 {[%clk 0:00:07]} 31. Rxc6 {[%clk 0:01:10.1]} 31...
a5 {[%clk 0:00:06.8]} 32. Bxa5 {[%clk 0:01:10]} 32... b4 {[%clk 0:00:07.1]} 33.
Rb6 {[%clk 0:01:07.6]} 33... Rxb6 {[%clk 0:00:04.3]} 34. cxb6 {[%clk 0:01:08.5]}
34... b3 {[%clk 0:00:04.6]} 35. b7 {[%clk 0:01:09.1]} 1-0

[Event "Late-Titled-Tuesday-Blitz-January-30-2024"]
[Site "Chess.com"]
[Date "2024.01.30"]
[Round "8"]
[White "Yaacovn"]
[Black "lupta_robin"]
[Result "1/2-1/2"]
[WhiteElo "2802"]
[BlackElo "2558"]
[TimeControl "180+1"]
[EndTime "15:26:37 PST"]
[Termination "Game drawn - insufficient material"]

1. d4 {[%clk 0:03:00]} 1... Nf6 {[%clk 0:02:58.7]} 2. Bg5 {[%clk 0:02:59.6]}
2... d5 {[%clk 0:02:57.5]} 3. Bxf6 {[%clk 0:02:59.4]} 3... gxf6 {[%clk 0:02:57]}
4. g3 {[%clk 0:02:59.9]} 4... c5 {[%clk 0:02:57]} 5. c3 {[%clk 0:02:59.6]} 5...
Nc6 {[%clk 0:02:56]} 6. e3 {[%clk 0:02:59.3]} 6... Qb6 {[%clk 0:02:55.4]} 7. Qb3
{[%clk 0:02:58.4]} 7... c4 {[%clk 0:02:52]} 8. Qc2 {[%clk 0:02:56.3]} 8... h5
{[%clk 0:02:07.9]} 9. Nd2 {[%clk 0:02:54.1]} 9... Qc7 {[%clk 0:01:57.2]} 10. e4
{[%clk 0:02:53.1]} 10... dxe4 {[%clk 0:01:49]} 11. Nxe4 {[%clk 0:02:51.3]} 11...
Bg7 {[%clk 0:01:35.6]} 12. Bxc4 {[%clk 0:02:50.3]} 12... Bf5 {[%clk 0:01:31.1]}
13. Nxf6+ {[%clk 0:02:49.7]} 13... Bxf6 {[%clk 0:01:31.1]} 14. Qxf5 {[%clk
0:02:50.1]} 14... Nxd4 {[%clk 0:01:31.7]} 15. Bb5+ {[%clk 0:02:46.2]} 15... Nxb5
{[%clk 0:01:25.3]} 16. Qxb5+ {[%clk 0:02:47.1]} 16... Kf8 {[%clk 0:01:04.4]} 17.
Nf3 {[%clk 0:02:44.8]} 17... a6 {[%clk 0:01:03.9]} 18. Qb3 {[%clk 0:02:42]}
18... b5 {[%clk 0:01:00.9]} 19. O-O {[%clk 0:02:37.9]} 19... h4 {[%clk
0:01:00.7]} 20. Rad1 {[%clk 0:02:35.7]} 20... hxg3 {[%clk 0:00:59.5]} 21. hxg3
{[%clk 0:02:34.9]} 21... Qc8 {[%clk 0:00:45.9]} 22. Qd5 {[%clk 0:02:34]} 22...
Rb8 {[%clk 0:00:41.1]} 23. Qd7 {[%clk 0:02:33.2]} 23... Qxd7 {[%clk 0:00:38.9]}
24. Rxd7 {[%clk 0:02:32.8]} 24... b4 {[%clk 0:00:39.6]} 25. cxb4 {[%clk
0:02:32.5]} 25... Bxb2 {[%clk 0:00:39.6]} 26. Rb1 {[%clk 0:02:31.9]} 26... Bc3
{[%clk 0:00:34.5]} 27. a3 {[%clk 0:02:29.7]} 27... Rh6 {[%clk 0:00:34.1]} 28.
Kg2 {[%clk 0:02:29.1]} 28... Rhb6 {[%clk 0:00:33.9]} 29. Rbd1 {[%clk 0:02:27.8]}
29... a5 {[%clk 0:00:28.9]} 30. Rd8+ {[%clk 0:02:26.1]} 30... Rxd8 {[%clk
0:00:27.8]} 31. Rxd8+ {[%clk 0:02:27]} 31... Kg7 {[%clk 0:00:28.5]} 32. bxa5
{[%clk 0:02:27]} 32... Bxa5 {[%clk 0:00:27.9]} 33. Rd3 {[%clk 0:02:27.5]} 33...
Ra6 {[%clk 0:00:26.7]} 34. Nd4 {[%clk 0:02:27.4]} 34... Bb6 {[%clk 0:00:26.7]}
35. Nf5+ {[%clk 0:02:27.3]} 35... Kf6 {[%clk 0:00:26.8]} 36. Ne3 {[%clk
0:02:27.6]} 36... Bxe3 {[%clk 0:00:25.9]} 37. Rxe3 {[%clk 0:02:27.6]} 37... Ra4
{[%clk 0:00:26.4]} 38. Rf3+ {[%clk 0:02:27.6]} 38... Kg6 {[%clk 0:00:26.5]} 39.
Rb3 {[%clk 0:02:26.9]} 39... e5 {[%clk 0:00:26.7]} 40. f3 {[%clk 0:02:26.9]}
40... f5 {[%clk 0:00:25.7]} 41. Kh3 {[%clk 0:02:25.2]} 41... Kg5 {[%clk
0:00:26]} 42. Re3 {[%clk 0:02:20.9]} 42... Kf6 {[%clk 0:00:24]} 43. Rc3 {[%clk
0:02:19.9]} 43... Kg5 {[%clk 0:00:24.2]} 44. Kg2 {[%clk 0:02:20.2]} 44... Rd4
{[%clk 0:00:23.2]} 45. Kf2 {[%clk 0:02:19.6]} 45... Rd2+ {[%clk 0:00:23.6]} 46.
Ke3 {[%clk 0:02:19.8]} 46... Ra2 {[%clk 0:00:24]} 47. f4+ {[%clk 0:02:18.7]}
47... exf4+ {[%clk 0:00:23.1]} 48. gxf4+ {[%clk 0:02:19.6]} 48... Kg4 {[%clk
0:00:23.8]} 49. Rb3 {[%clk 0:02:18.9]} 49... Kg3 {[%clk 0:00:23.6]} 50. Rc3
{[%clk 0:02:13.7]} 50... Kg4 {[%clk 0:00:24]} 51. Rd3 {[%clk 0:02:11.3]} 51...
Kg3 {[%clk 0:00:24.1]} 52. Rb3 {[%clk 0:02:03.1]} 52... Kg4 {[%clk 0:00:24.1]}
53. Kd4 {[%clk 0:02:03.9]} 53... Kxf4 {[%clk 0:00:24]} 54. Kc5 {[%clk
0:02:03.4]} 54... Ke4 {[%clk 0:00:22.7]} 55. Rb4+ {[%clk 0:02:01.8]} 55... Ke3
{[%clk 0:00:22.4]} 56. Rb3+ {[%clk 0:02:01.8]} 56... Ke2 {[%clk 0:00:20.1]} 57.
Kb4 {[%clk 0:02:01.4]} 57... f4 {[%clk 0:00:19.8]} 58. a4 {[%clk 0:02:00.9]}
58... f3 {[%clk 0:00:20]} 59. a5 {[%clk 0:02:00.9]} 59... f2 {[%clk 0:00:19.7]}
60. Rb1 {[%clk 0:02:00.8]} 60... f1=Q {[%clk 0:00:17.6]} 61. Rxf1 {[%clk
0:02:00.6]} 61... Kxf1 {[%clk 0:00:18.5]} 62. Kb5 {[%clk 0:02:01]} 62... Ke2
{[%clk 0:00:19.1]} 63. a6 {[%clk 0:02:01.5]} 63... Kd3 {[%clk 0:00:19.2]} 64.
Kb6 {[%clk 0:02:02]} 64... Kd4 {[%clk 0:00:19]} 65. a7 {[%clk 0:02:02.5]} 65...
Kd5 {[%clk 0:00:18.5]} 66. Kb7 {[%clk 0:02:02.8]} 66... Kd6 {[%clk 0:00:18.8]}
67. a8=Q {[%clk 0:02:02.5]} 67... Rxa8 {[%clk 0:00:19.2]} 68. Kxa8 {[%clk
0:02:02.6]} 1/2-1/2

[Event "Late-Titled-Tuesday-Blitz-January-30-2024"]
[Site "Chess.com"]
[Date "2024.01.30"]
[Round "8"]
[White "NovakRatko"]
[Black "Nf3c5"]
[Result "0-1"]
[WhiteElo "2394"]
[BlackElo "2526"]
[TimeControl "180+1"]
[EndTime "15:26:50 PST"]
[Termination "Nf3c5 won by resignation"]

1. d4 {[%clk 0:02:49.7]} 1... Nf6 {[%clk 0:02:59]} 2. c4 {[%clk 0:02:50.3]} 2...
e6 {[%clk 0:02:57.9]} 3. a3 {[%clk 0:02:50.5]} 3... d5 {[%clk 0:02:40.1]} 4. Nc3
{[%clk 0:02:49.7]} 4... c5 {[%clk 0:02:36.1]} 5. dxc5 {[%clk 0:02:49.5]} 5...
Bxc5 {[%clk 0:02:35.6]} 6. cxd5 {[%clk 0:02:49.1]} 6... exd5 {[%clk 0:02:34.4]}
7. b4 {[%clk 0:02:49.5]} 7... Bb6 {[%clk 0:02:26.5]} 8. e3 {[%clk 0:02:48.3]}
8... Nc6 {[%clk 0:02:26.4]} 9. Nf3 {[%clk 0:02:48.3]} 9... O-O {[%clk
0:02:25.2]} 10. Be2 {[%clk 0:02:48.6]} 10... d4 {[%clk 0:02:15.4]} 11. exd4
{[%clk 0:02:47.2]} 11... Nxd4 {[%clk 0:02:15.6]} 12. O-O {[%clk 0:02:43.4]}
12... Nxe2+ {[%clk 0:02:06.9]} 13. Nxe2 {[%clk 0:02:37]} 13... Bf5 {[%clk
0:01:54.4]} 14. Ned4 {[%clk 0:02:33.7]} 14... Bg6 {[%clk 0:01:46.8]} 15. Bg5
{[%clk 0:02:32.9]} 15... Qd5 {[%clk 0:01:43.6]} 16. Bxf6 {[%clk 0:02:27.5]}
16... gxf6 {[%clk 0:01:43.6]} 17. Ne2 {[%clk 0:02:22.9]} 17... Qb5 {[%clk
0:01:35.7]} 18. Nf4 {[%clk 0:02:18.2]} 18... Rad8 {[%clk 0:01:32.9]} 19. Qb3
{[%clk 0:02:13.4]} 19... Be4 {[%clk 0:01:27.5]} 20. Rad1 {[%clk 0:01:22.7]}
20... Qf5 {[%clk 0:01:23.2]} 21. Ne2 {[%clk 0:01:22.2]} 21... Bc2 {[%clk
0:01:22.2]} 22. Ng3 {[%clk 0:01:16]} 22... Bxb3 {[%clk 0:01:13]} 23. Rxd8 {[%clk
0:01:14.2]} 23... Qb5 {[%clk 0:01:05.3]} 24. Rd2 {[%clk 0:00:55.9]} 24... Rd8
{[%clk 0:01:00.7]} 25. Rb2 {[%clk 0:00:53.7]} 25... Bc4 {[%clk 0:00:59.6]} 26.
Rc1 {[%clk 0:00:50.8]} 26... Bd5 {[%clk 0:00:51.3]} 27. Nh4 {[%clk 0:00:45.1]}
27... Be6 {[%clk 0:00:50.6]} 28. Ne4 {[%clk 0:00:39.1]} 28... Qe5 {[%clk
0:00:46.8]} 29. Re2 {[%clk 0:00:35.2]} 29... f5 {[%clk 0:00:39.1]} 30. Ng3
{[%clk 0:00:31.2]} 30... Qf4 {[%clk 0:00:37.7]} 31. Rce1 {[%clk 0:00:27.8]}
31... Qxh4 {[%clk 0:00:37.2]} 0-1